[Event "Condigne Dutch Open 2018"]
[Site "Dieren"]
[Date "2018.07.27"]
[Round "4"]
[White "Reinderman, Dimitri"]
[Black "Himanshu, Sharma"]
[Result "1-0"]
[ECO "A03"]
[WhiteElo "2575"]
[BlackElo "2420"]
[Annotator "RC"]
[PlyCount "137"]
[EventDate "2018.07.24"]
[EventType "swiss"]
[EventCountry "NED"]
[SourceTitle "playchess.com"]
[Source "ChessBase"]
[SourceQuality "1"]
[TimeControl "40/5400+30:1800+30"]

1. f4 {[%emt 0:00:00]} d5 {[%emt 0:00:17]} 2. Nf3 {[%emt 0:00:00]} Nf6 {[%emt 0:00:38]} 3. g3 {[%emt 0:00:00]} Bf5 {[%emt 0:01:12]} 4. Bg2 {[%emt 0:00:00]} e6 {[%emt 0:00:07]} 5. d3 {[%emt 0:01:10]} Be7 {[%emt 0:01:02]} 6. O-O {[%emt 0:00:22]} h6 {[%emt 0:01:23]} 7. Ne5 {[%emt 0:04:10]} c6 {[%emt 0:07:57]} 8. Nd2 {[%emt 0:04:55]} O-O {[%emt 0:01:21]} 9. e4 {[%emt 0:02:59]} Bh7 {[%emt 0:00:07]} 10. Qe2 {[%emt 0:00:50]} Na6 {[%emt 0:04:10]} 11. Kh1 {[%emt 0:03:13]} Ne8 {[%emt 0:03:09]} 12. h4 {[%emt 0:19:31]} Nd6 {[%emt 0:03:24]} 13. h5 {[%emt 0:03:05]} Qe8 {[%emt 0:07:16]} 14. g4 {[%emt 0:10:01]} Nc7 {[%emt 0:04:12]} 15. b3 {[%emt 0:03:52]} f6 {[%emt 0:01:42]} 16. Nef3 {[%emt 0:03:24]} f5 {[%emt 0:12:27]} 17. Ne5 {[%emt 0:00:28]} Nf7 {[%emt 0:01:57]} 18. Bb2 {[%emt 0:08:35]} fxe4 {[%emt 0:00:17]} 19. dxe4 {[%emt 0:00:23]} Nxe5 {[%emt 0:00:17]} 20. Bxe5 {[%emt 0:00:23]} Qd7 {[%emt 0:01:12]} 21. Rad1 {[%emt 0:07:22]} Bf6 {[%emt 0:03:26]} 22. Bxf6 {[%emt 0:09:04]} gxf6 {[%emt 0:00:10]} 23. f5 {[%emt 0:01:13]} e5 {[%emt 0:02:38]} 24. exd5 {[%emt 0:03:03]} Nxd5 {[%emt 0:00:55]} 25. Nc4 {[%emt 0:00:54]} Rad8 {[%emt 0:09:19]} 26. Ne3 {[%emt 0:01:35]} Qf7 {[%emt 0:00:39]} 27. Nxd5 {[%emt 0:02:33]} cxd5 {[%emt 0:00:05]} 28. Qd2 {[%emt 0:00:13]} d4 {[%emt 0:00:34]} 29. Qxh6 {[%emt 0:00:29]} Kh8 {[%emt 0:00:48]} 30. g5 {[%emt 0:02:54]} fxg5 {[%emt 0:00:20]} 31. f6 {[%emt 0:00:18]} Qd7 {[%emt 0:00:58]} 32. Qxg5 {[%emt 0:03:48]} Rde8 {[%emt 0:03:24]} 33. Rf2 {[%emt 0:01:55]} Rf7 {[%emt 0:06:54]} 34. Rg1 {[%emt 0:01:35]} e4 {[%emt 0:01:16]} 35. Rf4 {[%emt 0:00:16]} e3 {[%emt 0:01:44]} 36. Qd5 {[%emt 0:01:54]} Bxc2 {[%emt 0:08:19]} 37. Rxd4 {[%emt 0:00:23]} Qxd5 {[%emt 0:01:40]} 38. Rxd5 {[%emt 0:00:34]} Rxf6 {[%emt 0:01:54]} 39. Re1 {[%emt 0:00:21]} e2 {[%emt 0:02:39]} 40. Kh2 {[%emt 0:01:36]} Re7 {[%emt 0:30:29]} 41. Rd2 {[%emt 0:01:36]} Bd1 {[%emt 0:00:00]} 42. Rd3 {[%emt 0:01:24]} Ref7 {[%emt 0:00:00]} 43. Rd8+ {[%emt 0:07:33]} Kg7 {[%emt 0:00:00]} 44. Rg1 {[%emt 0:01:37]} Rf2 {[%emt 0:00:00]} 45. Kh3 {[%emt 0:00:49]} Kf6 {[%emt 0:00:00]} 46. Rdxd1 {[%emt 0:08:42]} exd1=Q {[%emt 0:11:12]} 47. Rxd1 {[%emt 0:00:14]} Kg5 {[%emt 0:00:00]} 48. Rd5+ {[%emt 0:03:40]} Kh6 {[%emt 0:00:00]} 49. Be4 {[%emt 0:01:28]} Re7 {[%emt 0:00:00]} 50. Bg6 {[%emt 0:01:04]} Rxa2 {[%emt 0:00:00]} 51. Rd6 {[%emt 0:01:41]} Ra6 {[%emt 0:00:00]} 52. Rd3 {[%emt 0:01:01]} Rb6 {[%emt 0:00:00]} 53. Kg4 {[%emt 0:00:44]} Rf6 {[%emt 0:00:00]} 54. Rd4 {[%emt 0:01:07]} a5 {[%emt 0:00:00]} 55. Rd5 {[%emt 0:00:56]} b6 {[%emt 0:00:00]} 56. Rd8 {[%emt 0:00:14]} Kg7 {[%emt 0:00:00]} 57. Rd5 {[%emt 0:00:21]} Rc6 {[%emt 0:00:37]} 58. Kf4 {[%emt 0:01:15]} Rc3 {[%emt 0:01:04]} 59. Rd6 {[%emt 0:00:18]} b5 {[%emt 0:01:14]} 60. Bf5 {[%emt 0:00:52]} Kf7 {[%emt 0:03:29]} 61. h6 {[%emt 0:00:27]} Rb7 {[%emt 0:00:28]} 62. Rd8 {[%emt 0:01:13]} Rb6 {[%emt 0:00:29]} 63. h7 {[%emt 0:02:13]} Rh6 {[%emt 0:00:05]} 64. Kg5 {[%emt 0:00:49]} Rxh7 {[%emt 0:00:43]} 65. Rd7+ {[%emt 0:00:08]} Ke8 {[%emt 0:00:28]} 66. Rxh7 {[%emt 0:00:04]} Rxb3 {[%emt 0:00:09]} 67. Kf6 {[%emt 0:00:07]} Kd8 {[%emt 0:00:50]} 68. Rd7+ {[%emt 0:00:13]} Ke8 {[%emt 0:00:08]} 69. Rc7 {[%emt 0:00:17]} 1-0

[Event "Condigne Dutch Open 2018"]
[Site "Dieren"]
[Date "2018.07.27"]
[Round "4"]
[White "Chanda, Sandipan"]
[Black "Leenhouts, Koen"]
[Result "1/2-1/2"]
[ECO "D02"]
[WhiteElo "2548"]
[BlackElo "2483"]
[Annotator "ChessBase"]
[PlyCount "155"]
[EventDate "2018.07.24"]
[EventType "swiss"]
[EventCountry "NED"]
[SourceTitle "playchess.com"]
[Source "ChessBase"]
[SourceQuality "1"]
[TimeControl "40/5400+30:1800+30"]

1. d4 {[%emt 0:00:00]} d5 {[%emt 0:00:11]} 2. Nf3 {[%emt 0:00:44]} Nf6 {[%emt 0:00:09]} 3. Bf4 {[%emt 0:00:08]} e6 {[%emt 0:00:17]} 4. e3 {[%emt 0:00:12]} Bd6 {[%emt 0:00:09]} 5. Bg3 {[%emt 0:00:14]} O-O {[%emt 0:00:19]} 6. c4 {[%emt 0:00:27]} b6 {[%emt 0:06:33]} 7. cxd5 {[%emt 0:00:20]} exd5 {[%emt 0:02:30]} 8. Nc3 {[%emt 0:01:02]} Re8 {[%emt 0:08:08]} 9. Bxd6 {[%emt 0:06:20]} Qxd6 {[%emt 0:01:13]} 10. Be2 {[%emt 0:00:51]} c5 {[%emt 0:08:19]} 11. O-O {[%emt 0:03:11]} Nc6 {[%emt 0:01:40]} 12. Rc1 {[%emt 0:05:25]} Bg4 {[%emt 0:06:01]} 13. h3 {[%emt 0:16:56]} Bh5 {[%emt 0:07:17]} 14. dxc5 {[%emt 0:17:31]} bxc5 {[%emt 0:01:24]} 15. Na4 {[%emt 0:01:17]} Ne4 {[%emt 0:08:04]} 16. Nxc5 {[%emt 0:01:13]} Nxc5 {[%emt 0:00:56]} 17. Qc2 {[%emt 0:00:06]} Bxf3 {[%emt 0:00:32]} 18. Bxf3 {[%emt 0:00:25]} Ne5 {[%emt 0:00:14]} 19. Qxc5 {[%emt 0:00:09]} Nxf3+ {[%emt 0:01:41]} 20. gxf3 {[%emt 0:00:05]} Qf6 {[%emt 0:10:16]} 21. Qxd5 {[%emt 0:06:31]} Rad8 {[%emt 0:01:17]} 22. Qb7 {[%emt 0:10:45]} Qg6+ {[%emt 0:04:13]} 23. Kh2 {[%emt 0:01:10]} Rxe3 {[%emt 0:00:30]} 24. Rfd1 {[%emt 0:03:50]} Red3 {[%emt 0:09:12]} 25. Rxd3 {[%emt 0:00:55]} Qxd3 {[%emt 0:00:03]} 26. Rc8 {[%emt 0:00:17]} h5 {[%emt 0:02:40]} 27. Rxd8+ {[%emt 0:01:02]} Qxd8 {[%emt 0:00:02]} 28. Qxa7 {[%emt 0:22:54]} Qd5 {[%emt 0:02:06]} 29. b4 {[%emt 0:00:00]} Qxf3 {[%emt 0:01:39]} 30. Qe3 {[%emt 0:00:00]} Qd5 {[%emt 0:00:54]} 31. a3 {[%emt 0:00:00]} Qd6+ {[%emt 0:02:41]} 32. Kg1 {[%emt 0:00:00]} Qd1+ {[%emt 0:00:55]} 33. Kg2 {[%emt 0:00:00]} Qd5+ {[%emt 0:00:26]} 34. Qf3 {[%emt 0:00:00]} Qg5+ {[%emt 0:00:23]} 35. Kh2 {[%emt 0:00:00]} Qe5+ {[%emt 0:00:47]} 36. Qg3 {[%emt 0:00:00]} Qd4 {[%emt 0:02:16]} 37. Qe3 {[%emt 0:00:00]} Qd6+ {[%emt 0:00:17]} 38. Qg3 {[%emt 0:00:00]} Qd4 {[%emt 0:01:26]} 39. b5 {[%emt 0:00:00]} h4 {[%emt 0:00:03]} 40. Qe3 {[%emt 0:00:12]} Qd6+ {[%emt 0:42:47]} 41. f4 {[%emt 0:30:56]} Qd5 {[%emt 0:00:00]} 42. b6 {[%emt 0:00:00]} Qa2+ {[%emt 0:00:00]} 43. Kg1 {[%emt 0:00:00]} Qb1+ {[%emt 0:00:00]} 44. Kf2 {[%emt 0:00:00]} Qc2+ {[%emt 0:00:00]} 45. Kf3 {[%emt 0:00:00]} f5 {[%emt 0:00:00]} 46. Qd4 {[%emt 0:00:00]} Qb3+ {[%emt 0:00:00]} 47. Ke2 {[%emt 0:00:00]} Qc2+ {[%emt 0:00:00]} 48. Ke3 {[%emt 0:00:00]} Kh7 {[%emt 0:00:00]} 49. Qb4 {[%emt 0:00:00]} Qc1+ {[%emt 0:00:00]} 50. Kd4 {[%emt 0:00:00]} Qxf4+ {[%emt 0:00:00]} 51. Kd5 {[%emt 0:00:10]} Qf3+ {[%emt 0:00:00]} 52. Ke6 {[%emt 0:00:24]} Qc6+ {[%emt 0:00:00]} 53. Kxf5 {[%emt 0:00:36]} Qf3+ {[%emt 0:00:00]} 54. Ke5 {[%emt 0:00:43]} Qf6+ {[%emt 0:00:00]} 55. Kd5 {[%emt 0:00:18]} Qd8+ {[%emt 0:00:00]} 56. Qd6 {[%emt 0:06:31]} Qa8+ {[%emt 0:00:00]} 57. Ke6 {[%emt 0:02:10]} Qe8+ {[%emt 0:00:00]} 58. Kf5 {[%emt 0:00:15]} Qh5+ {[%emt 0:04:03]} 59. Kf4 {[%emt 0:00:39]} Qe2 {[%emt 0:00:21]} 60. Kg5 {[%emt 0:01:59]} Qe4 {[%emt 0:03:15]} 61. Kh5 {[%emt 0:00:55]} g6+ {[%emt 0:01:59]} 62. Kg5 {[%emt 0:00:02]} Qf5+ {[%emt 0:00:25]} 63. Kxh4 {[%emt 0:00:01]} Qf2+ {[%emt 0:00:15]} 64. Kg4 {[%emt 0:00:33]} Qg2+ {[%emt 0:00:16]} 65. Qg3 {[%emt 0:00:24]} Qe4+ {[%emt 0:00:33]} 66. Qf4 {[%emt 0:00:06]} Qe6+ {[%emt 0:00:18]} 67. Kg5 {[%emt 0:00:08]} Qe7+ {[%emt 0:00:56]} 68. Qf6 {[%emt 0:00:09]} Qc5+ {[%emt 0:00:29]} 69. Kh4 {[%emt 0:00:38]} Qc4+ {[%emt 0:00:51]} 70. Kg3 {[%emt 0:00:09]} Qd3+ {[%emt 0:00:39]} 71. Kf4 {[%emt 0:00:41]} Qf1+ {[%emt 0:00:24]} 72. Ke5 {[%emt 0:00:04]} Qb5+ {[%emt 0:00:23]} 73. Ke4 {[%emt 0:01:41]} Qe2+ {[%emt 0:00:04]} 74. Kd5 {[%emt 0:00:08]} Qb5+ {[%emt 0:00:03]} 75. Ke6 {[%emt 0:00:07]} Qxb6+ {[%emt 0:00:23]} 76. Kf7 {[%emt 0:00:04]} Qb3+ {[%emt 0:00:25]} 77. Qe6 {[%emt 0:00:24]} Qf3+ {[%emt 0:00:11]} 78. Qf6 {[%emt 0:01:26]} 1/2-1/2

[Event "Condigne Dutch Open 2018"]
[Site "Dieren"]
[Date "2018.07.27"]
[Round "4"]
[White "Pruijssers, Roeland"]
[Black "Anand Nadar"]
[Result "1/2-1/2"]
[ECO "A14"]
[WhiteElo "2501"]
[BlackElo "2346"]
[Annotator "RC"]
[PlyCount "105"]
[EventDate "2018.07.24"]
[EventType "swiss"]
[EventCountry "NED"]
[SourceTitle "playchess.com"]
[Source "ChessBase"]
[SourceQuality "1"]
[TimeControl "40/5400+30:1800+30"]

1. c4 {[%emt 0:00:00]} e6 {[%emt 0:01:51]} 2. g3 {[%emt 0:00:55]} Nf6 {[%emt 0:00:08]} 3. Nf3 {[%emt 0:00:57]} d5 {[%emt 0:00:17]} 4. Bg2 {[%emt 0:00:08]} Be7 {[%emt 0:00:32]} 5. b3 {[%emt 0:01:44]} O-O {[%emt 0:00:18]} 6. O-O {[%emt 0:02:22]} b6 {[%emt 0:00:10]} 7. Bb2 {[%emt 0:00:57]} c5 {[%emt 0:01:02]} 8. e3 {[%emt 0:03:08]} Bb7 {[%emt 0:00:57]} 9. Qe2 {[%emt 0:00:42]} Nc6 {[%emt 0:08:06]} 10. Rd1 {[%emt 0:04:16]} Rc8 {[%emt 0:05:55]} 11. d3 {[%emt 0:01:54]} Re8 {[%emt 0:06:12]} 12. Nbd2 {[%emt 0:06:46]} Qc7 {[%emt 0:05:59]} 13. Rac1 {[%emt 0:01:56]} e5 {[%emt 0:06:02]} 14. cxd5 {[%emt 0:11:21]} Nxd5 {[%emt 0:00:14]} 15. Nc4 {[%emt 0:00:06]} Bf8 {[%emt 0:03:32]} 16. a3 {[%emt 0:07:36]} Rcd8 {[%emt 0:02:39]} 17. Qf1 {[%emt 0:24:12]} Qb8 {[%emt 0:04:13]} 18. h3 {[%emt 0:00:07]} g6 {[%emt 0:15:00]} 19. Kh2 {[%emt 0:01:50]} Bg7 {[%emt 0:06:26]} 20. Ba1 {[%emt 0:00:19]} Ba8 {[%emt 0:06:29]} 21. Qh1 {[%emt 0:01:36]} h6 {[%emt 0:04:33]} 22. Nfd2 {[%emt 0:02:42]} Nde7 {[%emt 0:01:24]} 23. Ne4 {[%emt 0:00:09]} f5 {[%emt 0:03:22]} 24. Nc3 {[%emt 0:00:07]} b5 {[%emt 0:03:14]} 25. Nb2 {[%emt 0:00:02]} a6 {[%emt 0:06:17]} 26. Rd2 {[%emt 0:01:41]} Na5 {[%emt 0:01:00]} 27. Qd1 {[%emt 0:00:32]} Bxg2 {[%emt 0:00:12]} 28. Kxg2 {[%emt 0:00:02]} c4 {[%emt 0:04:23]} 29. bxc4 {[%emt 0:02:47]} bxc4 {[%emt 0:00:01]} 30. Rb1 {[%emt 0:00:25]} Nb3 {[%emt 0:00:52]} 31. Re2 {[%emt 0:00:58]} cxd3 {[%emt 0:00:57]} 32. Nxd3 {[%emt 0:00:21]} Qa8+ {[%emt 0:00:15]} 33. e4 {[%emt 0:00:06]} Nc5 {[%emt 0:01:03]} 34. Nxc5 {[%emt 0:01:41]} Rxd1 {[%emt 0:00:06]} 35. Rxd1 {[%emt 0:00:03]} Qc6 {[%emt 0:00:19]} 36. Nd3 {[%emt 0:00:07]} fxe4 {[%emt 0:00:36]} 37. Nxe4 {[%emt 0:01:09]} Qa4 {[%emt 0:01:06]} 38. Rdd2 {[%emt 0:01:03]} Nf5 {[%emt 0:00:47]} 39. Ndc5 {[%emt 0:01:48]} Qc6 {[%emt 0:00:36]} 40. f3 {[%emt 0:02:07]} Nd4 {[%emt 0:30:54]} 41. Re3 {[%emt 0:30:57]} Rb8 {[%emt 0:01:41]} 42. Bb2 {[%emt 0:01:27]} a5 {[%emt 0:00:00]} 43. Rc3 {[%emt 0:00:00]} Qd5 {[%emt 0:00:00]} 44. h4 {[%emt 0:00:00]} Qa2 {[%emt 0:00:00]} 45. Nd3 {[%emt 0:00:00]} Rf8 {[%emt 0:00:00]} 46. Rc7 {[%emt 0:00:00]} Nxf3 {[%emt 0:00:00]} 47. Bxe5 {[%emt 0:00:00]} Nxd2 {[%emt 0:00:50]} 48. Rxg7+ {[%emt 0:00:00]} Kh8 {[%emt 0:00:02]} 49. Rxg6+ {[%emt 0:00:01]} Kh7 {[%emt 0:00:01]} 50. Rg7+ {[%emt 0:00:09]} Kh8 {[%emt 0:00:00]} 51. Rd7+ {[%emt 0:03:13]} Kg8 {[%emt 0:00:02]} 52. Nc1 {[%emt 0:00:32]} Qxa3 {[%emt 0:02:13]} 53. Rg7+ {[%emt 0:17:46]} 1/2-1/2

[Event "Condigne Dutch Open 2018"]
[Site "Dieren"]
[Date "2018.07.27"]
[Round "4"]
[White "Beerdsen, Thomas"]
[Black "De Jong, Migchiel"]
[Result "1-0"]
[ECO "C16"]
[WhiteElo "2469"]
[BlackElo "2339"]
[Annotator "ChessBase"]
[PlyCount "57"]
[EventDate "2018.07.24"]
[EventType "swiss"]
[EventCountry "NED"]
[SourceTitle "playchess.com"]
[Source "ChessBase"]
[SourceQuality "1"]
[TimeControl "40/5400+30:1800+30"]

1. e4 {[%emt 0:00:00]} e6 {[%emt 0:00:25]} 2. d4 {[%emt 0:00:00]} d5 {[%emt 0:00:11]} 3. Nc3 {[%emt 0:00:00]} Bb4 {[%emt 0:00:34]} 4. e5 {[%emt 0:00:00]} Ne7 {[%emt 0:01:17]} 5. a3 {[%emt 0:00:00]} Bxc3+ {[%emt 0:00:05]} 6. bxc3 {[%emt 0:00:00]} b6 {[%emt 0:00:39]} 7. Qg4 {[%emt 0:00:07]} Ng6 {[%emt 0:00:09]} 8. h4 {[%emt 0:00:05]} h5 {[%emt 0:00:09]} 9. Qd1 {[%emt 0:00:04]} c5 {[%emt 0:00:08]} 10. Bb5+ {[%emt 0:00:03]} Bd7 {[%emt 0:00:25]} 11. Bd3 {[%emt 0:00:04]} Ba4 {[%emt 0:00:24]} 12. Bg5 {[%emt 0:00:04]} Qc7 {[%emt 0:02:33]} 13. Ne2 {[%emt 0:01:06]} Nd7 {[%emt 0:00:46]} 14. O-O {[%emt 0:05:02]} Ngf8 {[%emt 0:11:52]} 15. Ng3 {[%emt 0:05:52]} f6 {[%emt 0:01:44]} 16. Bf4 {[%emt 0:05:10]} fxe5 {[%emt 0:01:42]} 17. Bg5 {[%emt 0:04:27]} g6 {[%emt 0:08:29]} 18. f4 {[%emt 0:10:20]} e4 {[%emt 0:02:51]} 19. Nxe4 {[%emt 0:05:00]} dxe4 {[%emt 0:11:04]} 20. Bxe4 {[%emt 0:00:05]} Rc8 {[%emt 0:00:49]} 21. d5 {[%emt 0:03:59]} c4 {[%emt 0:01:28]} 22. dxe6 {[%emt 0:03:52]} Nc5 {[%emt 0:00:54]} 23. Qd4 {[%emt 0:07:56]} Rg8 {[%emt 0:04:34]} 24. e7 {[%emt 0:00:10]} Nfe6 {[%emt 0:01:21]} 25. Qf6 {[%emt 0:00:18]} Nxe4 {[%emt 0:23:44]} 26. Qxe6 {[%emt 0:00:05]} Qc5+ {[%emt 0:00:54]} 27. Kh2 {[%emt 0:01:30]} Bxc2 {[%emt 0:01:17]} 28. Qxg8+ {[%emt 0:00:19]} Kd7 {[%emt 0:00:16]} 29. Qd8+ {[%emt 0:00:04]} 1-0

[Event "Condigne Dutch Open 2018"]
[Site "Dieren"]
[Date "2018.07.27"]
[Round "4"]
[White "Vrolijk, Liam"]
[Black "Saravanan, V.."]
[Result "1-0"]
[ECO "E18"]
[WhiteElo "2419"]
[BlackElo "2326"]
[Annotator "NA"]
[PlyCount "47"]
[EventDate "2018.07.24"]
[EventType "swiss"]
[EventCountry "NED"]
[SourceTitle "playchess.com"]
[Source "ChessBase"]
[SourceQuality "1"]
[TimeControl "40/5400+30:1800+30"]

1. d4 {[%emt 0:00:00]} Nf6 {[%emt 0:05:43]} 2. c4 {[%emt 0:00:00]} e6 {[%emt 0:00:06]} 3. Nf3 {[%emt 0:00:55]} b6 {[%emt 0:00:07]} 4. g3 {[%emt 0:00:23]} Bb7 {[%emt 0:00:06]} 5. Bg2 {[%emt 0:00:06]} Be7 {[%emt 0:00:10]} 6. O-O {[%emt 0:01:26]} O-O {[%emt 0:01:17]} 7. Nc3 {[%emt 0:00:35]} Ne4 {[%emt 0:00:11]} 8. Bd2 {[%emt 0:00:06]} Bf6 {[%emt 0:00:51]} 9. Ne5 {[%emt 0:02:35]} Nxc3 {[%emt 0:12:46]} 10. Bxc3 {[%emt 0:00:08]} Bxg2 {[%emt 0:00:08]} 11. Kxg2 {[%emt 0:00:06]} d5 {[%emt 0:17:27]} 12. Qd3 {[%emt 0:08:52]} Bxe5 {[%emt 0:27:26]} 13. dxe5 {[%emt 0:00:08]} dxc4 {[%emt 0:00:03]} 14. Qxc4 {[%emt 0:00:16]} Qd5+ {[%emt 0:00:22]} 15. Qxd5 {[%emt 0:00:07]} exd5 {[%emt 0:00:04]} 16. Rad1 {[%emt 0:01:46]} c6 {[%emt 0:00:06]} 17. e4 {[%emt 0:00:19]} dxe4 {[%emt 0:00:36]} 18. Rfe1 {[%emt 0:00:30]} Na6 {[%emt 0:13:13]} 19. Rxe4 {[%emt 0:01:04]} Rfd8 {[%emt 0:00:09]} 20. Rxd8+ {[%emt 0:07:25]} Rxd8 {[%emt 0:00:11]} 21. Ra4 {[%emt 0:00:08]} Nc7 {[%emt 0:01:04]} 22. Rxa7 {[%emt 0:00:42]} Nd5 {[%emt 0:00:04]} 23. e6 {[%emt 0:01:25]} Nxc3 {[%emt 0:04:43]} 24. Rd7 {[%emt 0:00:47]} 1-0

[Event "Condigne Dutch Open 2018"]
[Site "Dieren"]
[Date "2018.07.27"]
[Round "4"]
[White "Beukema, Stefan"]
[Black "Van Osch, Mees"]
[Result "1/2-1/2"]
[ECO "C12"]
[WhiteElo "2404"]
[BlackElo "2324"]
[Annotator "NA"]
[PlyCount "29"]
[EventDate "2018.07.24"]
[EventType "swiss"]
[EventCountry "NED"]
[SourceTitle "playchess.com"]
[Source "ChessBase"]
[SourceQuality "1"]
[TimeControl "40/5400+30:1800+30"]

1. e4 {[%emt 0:00:00]} e6 {[%emt 0:00:08]} 2. d4 {[%emt 0:00:00]} d5 {[%emt 0:00:06]} 3. Nc3 {[%emt 0:00:00]} Nf6 {[%emt 0:00:03]} 4. Bg5 {[%emt 0:00:00]} Bb4 {[%emt 0:00:25]} 5. e5 {[%emt 0:00:03]} h6 {[%emt 0:00:06]} 6. Bd2 {[%emt 0:00:05]} Bxc3 {[%emt 0:00:05]} 7. bxc3 {[%emt 0:00:07]} Ne4 {[%emt 0:00:04]} 8. Qg4 {[%emt 0:00:07]} Kf8 {[%emt 0:00:15]} 9. Bd3 {[%emt 0:00:09]} Nxd2 {[%emt 0:00:18]} 10. Kxd2 {[%emt 0:00:06]} c5 {[%emt 0:00:04]} 11. h4 {[%emt 0:01:15]} Nc6 {[%emt 0:00:04]} 12. Rh3 {[%emt 0:08:25]} c4 {[%emt 0:02:06]} 13. Bf1 {[%emt 0:00:56]} b5 {[%emt 0:01:02]} 14. Ne2 {[%emt 0:01:37]} Bd7 {[%emt 0:00:18]} 15. Qf4 {[%emt 0:07:31]} 1/2-1/2

[Event "Condigne Dutch Open 2018"]
[Site "Dieren"]
[Date "2018.07.27"]
[Round "4"]
[White "Bosboom, Manuel"]
[Black "De Boer, Eelke"]
[Result "0-1"]
[ECO "A48"]
[WhiteElo "2403"]
[BlackElo "2317"]
[Annotator "NA"]
[PlyCount "76"]
[EventDate "2018.07.24"]
[EventType "swiss"]
[EventCountry "NED"]
[SourceTitle "playchess.com"]
[Source "ChessBase"]
[SourceQuality "1"]
[TimeControl "40/5400+30:1800+30"]

1. d4 {[%emt 0:00:00]} Nf6 {[%emt 0:00:30]} 2. Nf3 {[%emt 0:00:30]} g6 {[%emt 0:00:30]} 3. Bg5 {[%emt 0:00:30]} Bg7 {[%emt 0:00:30]} 4. e3 {[%emt 0:00:30]} O-O {[%emt 0:00:30]} 5. Nbd2 {[%emt 0:00:30]} d6 {[%emt 0:00:30]} 6. c3 {[%emt 0:00:30]} h6 {[%emt 0:00:30]} 7. Bh4 {[%emt 0:00:30]} g5 {[%emt 0:00:30]} 8. Nxg5 {[%emt 0:00:30]} hxg5 {[%emt 0:00:30]} 9. Bxg5 {[%emt 0:00:30]} Bf5 {[%emt 0:00:30]} 10. h4 {[%emt 0:00:30]} c5 {[%emt 0:00:30]} 11. Qf3 {[%emt 0:00:30]} Qd7 {[%emt 0:00:30]} 12. Bxf6 {[%emt 0:00:30]} Bxf6 {[%emt 0:00:30]} 13. g4 {[%emt 0:00:30]} Bh7 {[%emt 0:00:30]} 14. g5 {[%emt 0:00:30]} Bg7 {[%emt 0:00:30]} 15. Bh3 {[%emt 0:00:30]} Qc6 {[%emt 0:00:30]} 16. d5 {[%emt 0:00:30]} Qb5 {[%emt 0:00:30]} 17. Bf5 {[%emt 0:00:30]} Bxf5 {[%emt 0:00:30]} 18. Qxf5 {[%emt 0:00:30]} Qxb2 {[%emt 0:00:30]} 19. Rb1 {[%emt 0:00:30]} Qxc3 {[%emt 0:00:30]} 20. Ke2 {[%emt 0:00:30]} c4 {[%emt 0:00:30]} 21. Ne4 {[%emt 0:00:30]} Qd3+ {[%emt 0:00:30]} 22. Kf3 {[%emt 0:00:30]} e6 {[%emt 0:00:30]} 23. Qg4 {[%emt 0:00:30]} Nd7 {[%emt 0:00:30]} 24. Kg2 {[%emt 0:00:30]} Ne5 {[%emt 0:00:30]} 25. Qf4 {[%emt 0:00:30]} Qxd5 {[%emt 0:00:30]} 26. Rbd1 {[%emt 0:00:30]} Nd3 {[%emt 0:00:30]} 27. Qg4 {[%emt 0:00:30]} Qf5 {[%emt 0:00:30]} 28. Qxf5 {[%emt 0:00:30]} exf5 {[%emt 0:00:30]} 29. Nxd6 {[%emt 0:00:30]} Nb2 {[%emt 0:00:30]} 30. Rb1 {[%emt 0:00:30]} Rfd8 {[%emt 0:00:30]} 31. Nxf5 {[%emt 0:00:30]} Rd2 {[%emt 0:00:30]} 32. h5 {[%emt 0:00:30]} Nd3 {[%emt 0:00:30]} 33. Rhf1 {[%emt 0:00:30]} b6 {[%emt 0:00:30]} 34. h6 {[%emt 0:00:30]} Bh8 {[%emt 0:00:30]} 35. Kg3 {[%emt 0:00:30]} c3 {[%emt 0:00:30]} 36. Rb5 {[%emt 0:00:30]} c2 {[%emt 0:00:30]} 37. Rd5 {[%emt 0:00:30]} Rd1 {[%emt 0:00:30]} 38. Ne7+ {[%emt 0:00:30]} Kf8 {[%emt 0:00:30]} 0-1

[Event "Condigne Dutch Open 2018"]
[Site "Dieren"]
[Date "2018.07.27"]
[Round "4"]
[White "Schoppen, Casper"]
[Black "Van den Doel, Erik"]
[Result "1/2-1/2"]
[ECO "D45"]
[WhiteElo "2395"]
[BlackElo "2593"]
[Annotator "ChessBase"]
[PlyCount "56"]
[EventDate "2018.07.24"]
[EventType "swiss"]
[EventCountry "NED"]
[SourceTitle "playchess.com"]
[Source "ChessBase"]
[SourceQuality "1"]
[TimeControl "40/5400+30:1800+30"]

1. d4 {[%emt 0:00:00]} d5 {[%emt 0:00:06]} 2. c4 {[%emt 0:00:00]} c6 {[%emt 0:00:04]} 3. Nf3 {[%emt 0:00:17]} Nf6 {[%emt 0:00:11]} 4. Nc3 {[%emt 0:00:04]} e6 {[%emt 0:00:48]} 5. e3 {[%emt 0:01:55]} Nbd7 {[%emt 0:00:15]} 6. Qc2 {[%emt 0:00:07]} Bd6 {[%emt 0:00:05]} 7. g4 {[%emt 0:01:20]} Nxg4 {[%emt 0:04:16]} 8. Rg1 {[%emt 0:00:07]} Qf6 {[%emt 0:00:07]} 9. Rxg4 {[%emt 0:05:46]} Qxf3 {[%emt 0:00:04]} 10. Rxg7 {[%emt 0:00:42]} Nf6 {[%emt 0:08:14]} 11. Rg5 {[%emt 0:21:24]} Qh1 {[%emt 0:03:26]} 12. Bd2 {[%emt 0:15:46]} Qxh2 {[%emt 0:03:29]} 13. O-O-O {[%emt 0:00:55]} Bd7 {[%emt 0:05:51]} 14. e4 {[%emt 0:17:01]} Nxe4 {[%emt 0:36:34]} 15. Nxe4 {[%emt 0:00:06]} dxe4 {[%emt 0:00:03]} 16. Qxe4 {[%emt 0:00:48]} O-O-O {[%emt 0:07:38]} 17. Bg2 {[%emt 0:12:57]} h6 {[%emt 0:03:38]} 18. Ra5 {[%emt 0:06:07]} Rhg8 {[%emt 0:04:03]} 19. Bf3 {[%emt 0:01:29]} Qxf2 {[%emt 0:01:01]} 20. Rxa7 {[%emt 0:01:45]} Kb8 {[%emt 0:03:14]} 21. Ra5 {[%emt 0:01:07]} e5 {[%emt 0:04:50]} 22. dxe5 {[%emt 0:01:17]} Bc7 {[%emt 0:03:16]} 23. Be3 {[%emt 0:02:56]} Bf5 {[%emt 0:01:05]} 24. Rxd8+ {[%emt 0:05:22]} Bxd8 {[%emt 0:00:03]} 25. Bxf2 {[%emt 0:00:09]} Bxe4 {[%emt 0:00:04]} 26. Ra3 {[%emt 0:00:11]} Bf5 {[%emt 0:04:24]} 27. Bc5 {[%emt 0:00:47]} Kc8 {[%emt 0:01:00]} 28. Kd2 {[%emt 0:00:28]} Be6 {[%emt 0:02:17]} 1/2-1/2